[Event "Test Tournament"]
[Site "Emanuel Lasker Arena"]
[Date "2024.04.09"]
[Round "6"]
[White "Melancholia"]
[Black "Daenerys"]
[Result "1-0"]
[WhiteElo "1620"]
[BlackElo "1922"]
[Annotator "RC"]
[PlyCount "23"]
[EventDate "2024.04.09"]
[EventType "swiss (blitz)"]
[TimeControl "60"]

1. d4 {[%emt 0:00:02]} d5 {[%emt 0:00:01]} 2. c4 {[%emt 0:00:01]} dxc4 {[%emt 0:00:01]} 3. Nf3 {[%emt 0:00:01]} a6 {[%emt 0:00:01]} 4. e3 {[%emt 0:00:01]} b5 {[%emt 0:00:02]} 5. b3 {[%emt 0:00:01]} Qxd4 {[%emt 0:00:08]} 6. Qxd4 {[%emt 0:00:02]} c5 {[%emt 0:00:01]} 7. Qd5 {[%emt 0:00:04]} cxb3 {[%emt 0:00:01]} 8. Qxa8 {[%emt 0:00:01]} e5 {[%emt 0:00:01]} 9. Qxb8 {[%emt 0:00:01]} Ne7 {[%emt 0:00:04]} 10. axb3 {[%emt 0:00:01]} h5 {[%emt 0:00:03]} 11. Rxa6 {[%emt 0:00:04]} f5 {[%emt 0:00:03]} 12. Bxb5+ {[%emt 0:00:01] Daenerys resigns (Lag: Av=0.30s, max=1.3s)} 1-0